bitfinex/quotes_SOLUSD_20260217
["timestamp","ask_amount","ask_price","bid_price","bid_amount"]
[1771317407608,0.94101555,86.149,86.103,11.61399718]
[1771317407915,0.8567729,86.139,86.103,11.61399718]
[1771317408123,0.8567729,86.139,86.092,11.61548111]
[1771317408324,0.8567729,86.129,86.087,11.61613273]
[1771317408624,0.8567729,86.128,86.087,11.61613273]
[1771317408805,8.25122879,86.13,86.088,0.29318032]
[1771317409131,0.8567729,86.135,86.1,8.25122879]
[1771317409511,0.8567729,86.135,86.101,16.28]
[1771317411206,0.8567729,86.135,86.102,11.61413207]
[1771317411404,0.8567729,86.135,86.102,40.64946225]
[1771317411615,0.90593206,86.159,86.111,0.30854871]
[1771317411808,0.90593206,86.159,86.113,0.30854871]
[1771317413311,0.90593206,86.159,86.114,11.61251364]
[1771317413510,0.90593206,86.157,86.12,8.25122879]
[1771317413715,0.90593206,86.157,86.121,16.3]
[1771317414133,0.90593206,86.169,86.13,8.25122879]
[1771317414822,12.51103366,86.169,86.122,0.31596123]
[1771317415027,0.90593206,86.168,86.122,0.31596123]
[1771317415225,0.90593206,86.168,86.123,11.61130011]
[1771317416019,0.90593206,86.168,86.123,40.6395504]
[1771317416214,0.90593206,86.168,86.124,16.3]
[1771317416429,0.90593206,86.168,86.123,40.6395504]
[1771317416631,0.90593206,86.168,86.124,16.3]
[1771317417435,0.90593206,86.168,86.126,0.32679356]
[1771317418409,0.90593206,86.168,86.13,8.25122879]
[1771317418934,17.18,86.196,86.115,11.61237879]
[1771317418935,0.90593206,86.149,86.115,11.61237879]
[1771317419135,0.90593206,86.149,86.115,40.64332577]
[1771317420816,0.90593206,86.149,86.116,16.34]
[1771317421122,0.90593206,86.147,86.115,11.61237879]
[1771317421325,0.90593206,86.147,86.116,16.34]
[1771317421514,0.90593206,86.147,86.077,0.34066521]
[1771317421718,0.90593206,86.129,86.08,8.25122879]
[1771317421936,0.90593206,86.119,86.078,40.66079602]
[1771317422258,0.90593206,86.119,86.08,8.25122879]
[1771317422437,0.90593206,86.119,86.08,0.34404198]
[1771317422742,0.90593206,86.119,86.08,8.59527077]
[1771317423039,0.90593206,86.119,86.081,11.61696541]
[1771317423235,0.90593206,86.119,86.082,16.34]
[1771317424720,0.90593206,86.119,86.081,40.65937895]
[1771317424721,0.90593206,86.139,86.101,0.35395033]
[1771317424924,0.90593206,86.139,86.111,11.61291821]
[1771317426443,0.90593206,86.159,86.111,40.64521373]
[1771317427444,0.90593206,86.159,86.13,8.25122879]
[1771317428143,0.90593206,86.159,86.12,8.25122879]
[1771317428520,0.90593206,86.159,86.121,40.64049418]
[1771317428723,0.90593206,86.159,86.13,8.25122879]
[1771317429344,0.90593206,86.17,86.131,0.36662929]
[1771317429549,0.90593206,86.168,86.132,16.36]
[1771317429930,0.90593206,86.168,86.133,0.36971155]
[1771317430620,0.90593206,86.168,86.134,27.96981726]
[1771317431252,0.90593206,86.179,86.141,0.37274424]
[1771317431425,0.90593206,86.179,86.142,16.36]
[1771317431627,0.90593206,86.178,86.143,16.38]
[1771317431926,0.90593206,86.178,86.134,11.60981726]
[1771317432133,0.90593206,86.159,86.127,16.38]
[1771317432650,0.90593206,86.159,86.128,11.61062604]
[1771317432858,0.90593206,86.171,86.13,8.25122879]
[1771317433063,0.90593206,86.171,86.129,0.37872469]
[1771317433733,0.90593206,86.171,86.13,8.25122879]
[1771317434540,0.90593206,86.171,86.131,40.63577572]
[1771317436044,0.90593206,86.171,86.131,41.02490197]
[1771317436644,0.90593206,86.171,86.134,0.39165273]
[1771317438051,0.90593206,86.171,86.14,8.25122879]
[1771317438252,0.90593206,86.171,86.135,16.4]
[1771317438930,0.90593206,86.171,86.136,11.60954769]
[1771317440650,0.96332118,86.169,86.136,11.60954769]
[1771317441028,0.96332118,86.167,86.136,11.60954769]
[1771317441431,0.96332118,86.159,86.131,16.4]
[1771317441848,0.96332118,86.159,86.13,16.4]
[1771317443256,0.96332118,86.157,86.13,28.01028604]
[1771317444552,0.96332118,86.157,86.13,20.27009127]
[1771317444763,0.96332118,86.157,86.131,16.4]
[1771317446335,0.96332118,86.157,86.132,11.61008684]
[1771317448057,0.96332118,86.157,86.131,16.4]
[1771317449057,0.96332118,86.157,86.121,0.41983163]
[1771317449252,0.96332118,86.157,86.132,16.42]
[1771317450559,0.96332118,86.157,86.133,16.42]
[1771317450863,0.96332118,86.157,86.133,16.84415518]
[1771317451170,0.96332118,86.157,86.134,11.60981726]
[1771317456169,0.96332118,86.157,86.135,16.46]
[1771317457958,0.96332118,86.169,86.135,16.46]
[1771317458162,0.96332118,86.169,86.136,11.60954769]
[1771317459165,0.96332118,86.169,86.136,40.63341692]
[1771317463173,0.96332118,86.169,86.137,0.44811352]
[1771317463769,0.96332118,86.199,86.137,0.44811352]
[1771317463977,4.26182372,86.18,86.137,0.44811352]
[1771317464283,0.96332118,86.179,86.137,0.44811352]
[1771317464479,3.29850254,86.17,86.138,16.5]
[1771317464663,0.96124746,86.169,86.138,16.95178372]
[1771317465063,0.96124746,86.169,86.139,16.5]
[1771317466478,0.96124746,86.168,86.14,11.60900859]
[1771317466858,0.96124746,86.159,86.127,11.61076085]
[1771317467059,0.96124746,86.159,86.128,16.5]
[1771317467761,0.96124746,86.159,86.127,11.61076085]
[1771317468072,0.96124746,86.159,86.128,16.52]
[1771317469956,0.96124746,86.159,86.129,11.61049123]
[1771317472377,0.96124746,86.159,86.129,12.07782446]
[1771317475187,0.95912335,86.149,86.13,16.56]
[1771317475372,0.95912335,86.149,86.131,16.56]
[1771317477189,0.95912335,86.147,86.129,16.58]
[1771317478072,0.95912335,86.139,86.129,16.58]
[1771317478788,0.95912335,86.139,86.129,8.42034675]
[1771317479181,3.29870618,86.16,86.13,1.04743791]
[1771317479482,3.29870618,86.16,86.131,1.04743791]
[1771317480793,3.29870618,86.16,86.133,1.04743791]
[1771317481696,14.90508472,86.16,86.133,1.04743791]
[1771317481879,3.29870618,86.16,86.133,1.04743791]
[1771317482304,3.29870618,86.17,86.133,1.04743791]
[1771317482789,3.29870618,86.17,86.134,40.63436041]
[1771317482996,3.29870618,86.17,86.135,1.04743791]
[1771317483999,0.02123422,86.169,86.135,1.04743791]
[1771317484195,3.29870618,86.17,86.135,1.04743791]
[1771317485695,3.29870618,86.17,86.137,1.04743791]
[1771317486705,3.29870618,86.17,86.139,1.04743791]
[1771317486895,0.02123422,86.175,86.139,1.04743791]
[1771317487093,3.29870618,86.17,86.139,1.04743791]
[1771317487681,0.02123422,86.175,86.14,11.60900859]
[1771317487985,3.29870618,86.18,86.141,1.04743791]
[1771317489488,11.60375497,86.179,86.143,1.04743791]
[1771317490679,0.04890183,86.206,86.143,1.04743791]
[1771317490997,0.04890183,86.206,86.161,1.04743791]
[1771317491590,0.04890183,86.206,86.163,1.04743791]
[1771317492317,3.29870618,86.21,86.163,1.04743791]
[1771317493010,3.29870618,86.21,86.165,1.04743791]
[1771317493201,11.59866179,86.217,86.171,1.04743791]
[1771317493795,3.35139949,86.22,86.173,1.04743791]
[1771317493996,3.29870618,86.22,86.175,1.04743791]
[1771317494208,0.06010188,86.228,86.181,1.04743791]
[1771317494808,11.65732047,86.228,86.181,1.04743791]
[1771317495315,3.29870618,86.22,86.183,1.04743791]
[1771317495890,3.29870618,86.22,86.185,1.04743791]
[1771317499318,3.49870618,86.23,86.187,1.04743791]
[1771317500523,3.49870618,86.23,86.188,40.60890146]
[1771317500695,3.29870618,86.22,86.189,1.04743791]
[1771317500896,3.49870618,86.23,86.189,1.04743791]
[1771317501512,0.2,86.23,86.19,3.29870618]
[1771317501715,3.49870618,86.23,86.191,1.04743791]
[1771317502012,0.2,86.23,86.191,1.04743791]
[1771317502616,0.2,86.23,86.193,1.04743791]
[1771317503720,0.2,86.23,86.201,1.04743791]
[1771317504026,0.2,86.23,86.203,1.04743791]
[1771317504522,0.2,86.23,86.205,1.04743791]
[1771317504899,0.2,86.23,86.207,1.04743791]
[1771317505100,0.2,86.23,86.209,1.04743791]
[1771317505300,0.2,86.23,86.211,1.04743791]
[1771317506524,0.2,86.23,86.213,1.04743791]
[1771317507523,0.2,86.23,86.215,1.04743791]
[1771317507914,0.2,86.23,86.217,1.04743791]
[1771317508309,0.2,86.23,86.219,1.04743791]
[1771317508916,0.2,86.23,86.22,16.66]
[1771317509428,3.49870618,86.23,86.221,16.66]
[1771317510015,3.49870618,86.23,86.214,11.5989899]
[1771317510218,3.49870618,86.23,86.215,16.66]
[1771317510720,0.2,86.23,86.215,16.66]
[1771317511416,0.2,86.23,86.216,11.59877516]
[1771317512011,0.2,86.23,86.216,12.64621307]
[1771317513424,0.2,86.23,86.217,16.68]
[1771317514235,1e-08,86.25,86.221,1.04743791]
[1771317514414,1e-08,86.25,86.22,3.29870618]
[1771317514415,1e-08,86.25,86.223,1.04743791]
[1771317514733,1e-08,86.25,86.225,1.04743791]
[1771317515433,1e-08,86.25,86.227,1.04743791]
[1771317515724,0.13386817,86.25,86.227,1.04743791]
[1771317515932,0.13386817,86.25,86.228,16.7]
[1771317516231,0.13386817,86.25,86.229,11.59702652]
[1771317516431,0.13386817,86.25,86.23,1.04743791]
[1771317516928,1e-08,86.25,86.23,1.04743791]
[1771317517932,0.2,86.26,86.23,1.04743791]
[1771317518314,0.2,86.26,86.233,1.04743791]
[1771317518826,0.2,86.26,86.232,11.59662306]
[1771317518827,0.14212234,86.259,86.232,11.59662306]
[1771317519025,0.14212234,86.259,86.234,16.7]
[1771317520529,0.14212234,86.259,86.235,12.64365754]
[1771317520736,0.14212234,86.259,86.236,1.04743791]
[1771317522528,0.14212234,86.259,86.238,1.04743791]
[1771317523118,0.14212234,86.259,86.234,16.7]
[1771317523119,0.14212234,86.259,86.236,11.59602681]
[1771317523516,0.1526786,86.249,86.221,1.04743791]
[1771317523818,11.79298593,86.26,86.222,16.72]
[1771317523819,3.29870618,86.24,86.222,16.72]
[1771317524019,3.45397373,86.24,86.223,16.72]
[1771317525334,0.15526755,86.24,86.223,16.72]
[1771317525637,3.45397373,86.24,86.223,16.72]
[1771317526333,3.29870618,86.24,86.223,16.72]
[1771317526527,0.16281326,86.238,86.212,1.10270836]
[1771317526732,3.29870618,86.24,86.214,1.10270836]
[1771317527366,3.29870618,86.25,86.214,1.10270836]
[1771317527937,0.16769547,86.249,86.214,1.10270836]
[1771317528619,0.16769547,86.249,86.216,1.10270836]
[1771317531836,0.2,86.26,86.207,1.09452585]
[1771317531837,0.17940617,86.239,86.207,1.09452585]
[1771317532426,3.29314588,86.23,86.207,1.09452585]
[1771317532627,3.47481924,86.23,86.207,1.09452585]
[1771317532827,0.18167336,86.229,86.207,1.09452585]
[1771317534546,0.18167336,86.229,86.208,11.59985152]
[1771317534927,0.18167336,86.229,86.208,12.69437737]
[1771317535939,0.18167336,86.229,86.208,11.59985152]
[1771317536136,0.18832045,86.235,86.209,1.09452585]
[1771317536848,3.29314588,86.25,86.211,1.09452585]
[1771317537437,3.29314588,86.25,86.21,43.89168432]
[1771317537438,3.48362964,86.25,86.213,1.09452585]
[1771317537949,3.29314588,86.25,86.213,1.09452585]
[1771317538633,3.29314588,86.25,86.215,1.09452585]
[1771317538834,3.29314588,86.25,86.217,1.09452585]
[1771317540859,3.29314588,86.25,86.219,1.09452585]
[1771317542258,3.69403828,86.26,86.221,1.09452585]
[1771317542438,3.49314588,86.26,86.221,1.09452585]
[1771317543359,3.49314588,86.26,86.223,1.09452585]
[1771317543544,3.49314588,86.26,86.222,40.59288812]
[1771317543545,0.2,86.26,86.231,1.09452585]
[1771317545061,0.20685209,86.279,86.231,1.09452585]
[1771317545237,0.20685209,86.277,86.231,1.09452585]
[1771317545442,3.29314588,86.27,86.233,1.09452585]
[1771317546160,0.20685209,86.275,86.233,1.09452585]
[1771317546357,0.20685209,86.275,86.241,1.09452585]
[1771317546557,3.29314588,86.27,86.241,1.09452585]
[1771317546866,0.2087958,86.269,86.241,1.09452585]
[1771317547387,0.21071954,86.274,86.243,1.09452585]
[1771317547570,0.21071954,86.279,86.245,1.09452585]
[1771317550339,3.50951136,86.27,86.247,1.09452585]
[1771317550745,3.29314588,86.27,86.247,1.09452585]
[1771317550967,3.51133714,86.27,86.247,1.09452585]
[1771317551274,3.29314588,86.28,86.247,1.09452585]
[1771317552052,3.51315196,86.28,86.247,1.09452585]
[1771317552253,0.22000608,86.279,86.247,1.09452585]
[1771317552561,11.5904402,86.278,86.249,1.09452585]
[1771317552966,11.81222824,86.278,86.249,1.09452585]
[1771317553147,3.29314588,86.28,86.249,1.09452585]
[1771317553465,3.29314588,86.28,86.248,40.58065113]
[1771317553466,3.29314588,86.28,86.251,1.09452585]
[1771317554252,3.51623083,86.28,86.251,1.09452585]
[1771317554451,3.51623083,86.28,86.253,1.05120758]
[1771317557176,3.29314588,86.28,86.255,1.05120758]
[1771317557470,3.29314588,86.28,86.257,1.05120758]
[1771317557670,0.22497819,86.281,86.257,1.05120758]
[1771317557861,3.29314588,86.28,86.257,1.05120758]
[1771317558279,3.29314588,86.28,86.248,28.98617938]
[1771317558280,3.29314588,86.28,86.259,1.05120758]
[1771317559375,0.2262049,86.286,86.259,1.05120758]
[1771317560349,3.29314588,86.29,86.261,1.05120758]
[1771317560549,3.29314588,86.3,86.263,1.05120758]
[1771317560747,11.81336621,86.307,86.265,1.05120758]
[1771317560946,0.22739362,86.299,86.267,1.05120758]
[1771317562670,3.29314588,86.3,86.269,1.05120758]
[1771317562870,0.22853979,86.305,86.269,1.05120758]
[1771317563067,3.29314588,86.31,86.271,1.05120758]
[1771317563268,0.22853979,86.308,86.273,1.05120758]
[1771317563471,0.22853979,86.308,86.275,1.05120758]
[1771317563771,3.29314588,86.3,86.275,1.05120758]
[1771317564175,0.22910986,86.289,86.268,12.64299132]
[1771317564371,3.29314588,86.28,86.262,15.16137012]
[1771317567664,0.2307844,86.309,86.264,1.05120758]
[1771317567867,0.2307844,86.309,86.271,1.05120758]
[1771317568674,0.23186327,86.299,86.272,11.59124629]
[1771317568869,0.23186327,86.289,86.265,11.59211834]
[1771317569071,3.29314588,86.28,86.265,11.59211834]
[1771317570378,3.29314588,86.28,86.256,12.64460398]
[1771317570579,0.23238559,86.279,86.256,11.5933964]
[1771317572084,3.29314588,86.29,86.259,1.05120758]
[1771317572269,3.52658651,86.29,86.259,1.05120758]
[1771317572462,0.23344063,86.289,86.259,1.05120758]
[1771317573564,3.29314588,86.28,86.259,1.05120758]
[1771317577403,0.23596819,86.279,86.257,11.59321908]
[1771317577583,0.23596819,86.269,86.238,1.05120758]
[1771317577882,0.23646235,86.289,86.24,1.05120758]
[1771317578082,3.29314588,86.28,86.242,1.05120758]
[1771317578389,3.29314588,86.28,86.244,1.05120758]
[1771317579380,3.29314588,86.27,86.244,1.05120758]
[1771317579585,3.29314588,86.26,86.244,1.05120758]
[1771317579777,3.29314588,86.27,86.244,1.05120758]
[1771317579974,3.53055818,86.27,86.244,1.05120758]
[1771317580491,0.2374123,86.269,86.245,11.59487506]
[1771317580790,0.2374123,86.269,86.246,1.05120758]
[1771317581180,3.29314588,86.27,86.246,1.05120758]
[1771317581380,3.29314588,86.27,86.127,25.31753106]
[1771317581381,0.23787468,86.259,86.225,1.05120758]
[1771317581583,0.23787468,86.239,86.202,1.05120758]
[1771317581787,0.23787468,86.239,86.214,1.05120758]
[1771317582275,0.23833476,86.238,86.211,11.59931526]
[1771317584584,0.23833476,86.238,86.211,12.74904347]
[1771317584892,0.23833476,86.238,86.212,1.14972821]
[1771317585396,0.24017762,86.229,86.197,1.14972821]
[1771317586495,0.24017762,86.229,86.198,11.60119724]
[1771317586687,0.24017762,86.229,86.199,1.14972821]
[1771317588475,3.29314588,86.23,86.199,1.14972821]
[1771317588683,3.29314588,86.23,86.201,1.14972821]
[1771317590577,0.24277361,86.229,86.201,1.14972821]
[1771317590897,0.24277361,86.229,86.203,1.13339908]
[1771317592980,0.24277361,86.229,86.205,1.13339908]
[1771317593181,3.29380144,86.23,86.205,1.13339908]
[1771317593885,0.24438627,86.239,86.205,1.13339908]
[1771317594092,3.29380144,86.24,86.205,1.13339908]
[1771317594478,3.53818771,86.24,86.205,1.13339908]
[1771317595400,3.53818771,86.24,86.207,1.13339908]
[1771317595578,0.24478123,86.239,86.207,1.13339908]
[1771317595897,3.29380144,86.24,86.207,1.13339908]
[1771317596792,3.29380144,86.24,86.209,1.13339908]
[1771317597092,3.53935868,86.24,86.211,1.13339908]
[1771317597476,0.24555724,86.229,86.212,11.59931332]
[1771317597890,0.24593878,86.235,86.213,1.13339908]
[1771317598777,3.29380144,86.24,86.215,1.13339908]
[1771317599172,3.29380144,86.23,86.215,1.13339908]
[1771317599676,3.54011461,86.24,86.215,1.13339908]
[1771317600298,3.29380144,86.23,86.216,11.59877516]
[1771317600477,3.29380144,86.23,86.216,12.73217424]
[1771317600678,3.29380144,86.23,86.211,11.59933487]
[1771317600899,3.29380144,86.23,86.212,1.13339908]
[1771317601394,3.29380144,86.24,86.212,1.13339908]
[1771317602074,3.54123606,86.24,86.212,1.13339908]
[1771317602692,3.29380144,86.24,86.214,1.13339908]
[1771317604802,3.29380144,86.25,86.216,1.13339908]
[1771317605397,0.24849473,86.239,86.216,1.13339908]
[1771317605598,3.29380144,86.24,86.216,1.13339908]
[1771317606098,3.29380144,86.25,86.216,1.13339908]
[1771317606701,16.2,86.272,86.2,3.29380144]
[1771317606702,3.54264128,86.27,86.231,12.73015662]
[1771317606909,46.33474034,86.329,86.232,16.96]
[1771317606910,3.29380144,86.28,86.232,16.96]
[1771317607083,3.29380144,86.28,86.233,1.13339908]
[1771317607282,3.29380144,86.27,86.233,1.13339908]
[1771317608686,3.29380144,86.27,86.231,40.5886514]
[1771317608687,3.29380144,86.27,86.235,1.13339908]
[1771317609001,14.88533604,86.27,86.237,1.13339908]
[1771317609204,0.24984342,86.249,86.222,1.13339908]
[1771317609380,1.11099466,86.229,86.173,16.98]
[1771317609586,3.29380144,86.21,86.173,16.98]
[1771317609784,3.29380144,86.21,86.171,40.61691288]
[1771317609998,3.29380144,86.21,86.172,16.98]
[1771317611310,4.4047961,86.21,86.175,1.13339908]
[1771317611489,11.59971696,86.209,86.175,1.13339908]
[1771317611684,1.11099466,86.208,86.175,1.13339908]
[1771317613206,3.29380144,86.21,86.175,1.13339908]
[1771317613705,14.89346565,86.21,86.177,1.13339908]
[1771317614703,14.89346565,86.21,86.179,1.05796882]
[1771317614910,1.07685189,86.209,86.179,1.05796882]
[1771317615403,3.29380144,86.21,86.179,1.05796882]
[1771317616402,3.29380144,86.21,86.17,3.39380144]
[1771317616403,1.07685189,86.189,86.152,1.05796882]
[1771317616602,3.29380144,86.2,86.107,46.4535737]
[1771317616603,3.29380144,86.2,86.161,1.05796882]
[1771317616808,11.60106265,86.199,86.163,1.05796882]
[1771317617493,3.29380144,86.19,86.163,1.05796882]
[1771317619710,3.29380144,86.2,86.165,1.05796882]
[1771317619884,3.29380144,86.2,86.167,1.05796882]
[1771317621206,3.29380144,86.2,86.169,1.05796882]
[1771317621892,3.29380144,86.2,86.171,1.05796882]
[1771317622291,3.29380144,86.19,86.171,1.05796882]
[1771317622801,1.07685189,86.199,86.171,1.05796882]
[1771317623610,1.07685189,86.198,86.172,12.6626664]
[1771317623787,1.07685189,86.198,86.173,1.05796882]
[1771317624207,3.29380144,86.2,86.173,1.05796882]
[1771317624508,1.07685189,86.205,86.173,1.05796882]
[1771317624712,11.59988952,86.208,86.173,1.05796882]
[1771317625413,3.29380144,86.21,86.173,1.05796882]
[1771317625716,3.29380144,86.21,86.175,1.05796882]
[1771317625926,11.59929379,86.213,86.175,1.05796882]
[1771317626301,11.59929379,86.213,86.177,1.05796882]
[1771317626501,12.67544545,86.218,86.181,1.05796882]
[1771317626805,12.67544545,86.218,86.18,3.29380144]
[1771317626806,12.67544545,86.218,86.183,1.05796882]
[1771317628604,12.67544545,86.218,86.185,1.05796882]
[1771317630399,12.67544545,86.218,86.186,1.05796882]
[1771317630822,1.07685189,86.218,86.188,1.05796882]
[1771317631922,3.29380144,86.22,86.188,1.05796882]
[1771317632107,11.59800632,86.222,86.188,1.05796882]
[1771317633307,11.59800632,86.222,86.19,1.05796882]
[1771317633513,12.67485821,86.222,86.19,1.05796882]
[1771317633706,1.07685189,86.221,86.19,1.05796882]
[1771317634813,1.07685189,86.219,86.19,1.05796882]
[1771317635214,1.07685189,86.217,86.19,1.05796882]
[1771317635706,1.07685189,86.217,86.185,17.02]
[1771317635905,1.07685189,86.209,86.185,17.02]
[1771317638621,1.07685189,86.209,86.182,12.66121319]
[1771317638928,1.07685189,86.209,86.183,1.05796882]
[1771317639230,1.07685189,86.207,86.177,1.05796882]
[1771317639405,1.07685189,86.207,86.167,1.05796882]
[1771317639605,1.07685189,86.207,86.171,1.05796882]
[1771317640134,1.07685189,86.207,86.181,1.05796882]
[1771317642209,1.07685189,86.215,86.181,1.05796882]
[1771317643226,11.59904423,86.214,86.181,1.05796882]
[1771317643432,1.07685189,86.213,86.181,1.05796882]
[1771317644629,1.07685189,86.213,86.18,3.29380144]
[1771317644630,1.07685189,86.213,86.184,11.60308177]
[1771317644833,1.07685189,86.213,86.185,1.03248358]
[1771317645420,11.59904423,86.214,86.185,1.03248358]
[1771317645730,11.59904423,86.214,86.191,1.03248358]
[1771317646434,1.04631617,86.213,86.191,1.03248358]
[1771317648227,28.99564754,86.22,86.175,1.03248358]
[1771317648228,1.04631617,86.211,86.175,1.03248358]
[1771317648431,1.04631617,86.211,86.181,1.03248358]
[1771317648732,11.59931332,86.212,86.191,1.03248358]
[1771317648924,12.64562949,86.212,86.191,1.03248358]
[1771317650614,11.59931332,86.212,86.191,1.03248358]
[1771317650836,1.07330241,86.219,86.191,1.03248358]
[1771317651036,11.59850611,86.218,86.191,1.03248358]
[1771317652432,9.50850611,86.218,86.191,1.03248358]
[1771317652627,9.50850611,86.218,86.2,3.29380144]
[1771317653223,1.07330241,86.219,86.2,3.29380144]
[1771317654034,1.07330241,86.219,86.2,4.3284017]
[1771317654818,11.59850611,86.218,86.2,1.03505533]
[1771317655134,1.07330241,86.217,86.192,1.03505533]
[1771317656946,1.07330241,86.217,86.193,11.60187022]
[1771317657242,11.59803576,86.222,86.194,1.03505533]
[1771317657444,12.67133817,86.222,86.194,1.03505533]
[1771317658634,12.67133817,86.222,86.201,1.03505533]
[1771317658835,1.07330241,86.228,86.201,1.03505533]
[1771317661325,1.07330241,86.228,86.202,11.60065891]
[1771317661530,1.07330241,86.228,86.203,1.03505533]
[1771317663337,1.07330241,86.228,86.205,1.03505533]
[1771317664627,11.59606226,86.237,86.211,1.03505533]
[1771317664828,11.59606226,86.237,86.221,1.03505533]
[1771317665443,12.6688121,86.241,86.221,1.03505533]
[1771317665764,11.59550969,86.241,86.221,1.03505533]
[1771317668434,11.59474062,86.246,86.221,1.03505533]
[1771317669029,12.66804303,86.246,86.221,1.03505533]
[1771317669433,11.5950095,86.244,86.221,1.03505533]
[1771317671330,1.07330241,86.244,86.221,1.03505533]
[1771317672455,1.07330241,86.244,86.22,3.29334637]
[1771317672639,1.07330241,86.244,86.214,1.03505533]
[1771317672958,1.07330241,86.244,86.058,44.91616766]
[1771317672959,1.07330241,86.229,86.193,1.03505533]
[1771317673267,1.07330241,86.229,86.193,12.63689723]
[1771317674158,0.98855021,86.227,86.194,1.00537321]
[1771317674542,0.98855021,86.227,86.2,3.29334637]
[1771317674859,0.98855021,86.227,86.201,1.00537321]
[1771317676157,0.98855021,86.225,86.201,1.00537321]
[1771317676540,0.98855021,86.225,86.2,3.29334637]
[1771317676741,0.98855021,86.225,86.195,1.00537321]
[1771317677862,0.98855021,86.225,86.196,12.60683963]
[1771317678359,0.98855021,86.223,86.196,1.00537321]
[1771317681869,0.98855021,86.223,86.198,1.00537321]
[1771317682359,11.59796803,86.222,86.198,1.00537321]
[1771317686465,0.98855021,86.221,86.198,1.00537321]
[1771317688469,12.58677569,86.221,86.201,1.00537321]
[1771317690382,0.98855021,86.226,86.201,1.00537321]
[1771317692515,0.98855021,86.224,86.201,1.00537321]
[1771317693561,12.58638373,86.223,86.201,1.00537321]
[1771317693981,0.98855021,86.222,86.201,1.00537321]
[1771317695688,0.98855021,86.22,86.201,1.00537321]
[1771317698185,0.98855021,86.226,86.201,1.00537321]
[1771317700196,11.59756451,86.225,86.201,1.00537321]
[1771317700482,12.58611472,86.225,86.201,1.00537321]
[1771317701494,0.98855021,86.224,86.201,1.00537321]
[1771317702392,0.98855021,86.224,86.181,1.00537321]
[1771317702581,0.98855021,86.219,86.181,1.00537321]
[1771317702996,0.98855021,86.219,86.171,1.00537321]
[1771317703204,0.98855021,86.217,86.171,1.00537321]
[1771317703493,0.98855021,86.209,86.173,1.00537321]
[1771317706165,0.95724394,86.207,86.175,1.02545629]
[1771317708075,0.95724394,86.205,86.175,1.02545629]
[1771317709773,0.95724394,86.205,86.17,3.29334637]
[1771317709774,0.95724394,86.205,86.177,1.02545629]
[1771317710187,0.95724394,86.205,86.178,11.60388962]
[1771317710478,11.60012064,86.206,86.181,0.97142627]
[1771317712699,11.59945082,86.211,86.183,0.97142627]
[1771317712900,16.28,86.215,86.191,0.97142627]
[1771317713981,11.59810255,86.221,86.191,0.97142627]
[1771317714498,11.59810255,86.221,86.193,0.97142627]
[1771317715012,0.99766024,86.22,86.193,0.97142627]
[1771317716492,0.99624863,86.218,86.187,0.97142627]
[1771317717700,0.99485324,86.216,86.187,0.97142627]
[1771317718203,0.99485324,86.216,86.189,0.97142627]
[1771317719384,11.5989097,86.215,86.191,0.97142627]
[1771317721207,0.98943013,86.214,86.191,0.97142627]
[1771317722809,0.98811305,86.212,86.181,0.97142627]
[1771317723511,0.98681111,86.209,86.176,0.97142627]
[1771317723690,0.98681111,86.199,86.171,0.97142627]
[1771317724694,0.98552412,86.197,86.164,11.60565008]
[1771317724900,0.98552412,86.197,86.165,0.97142627]
[1771317726512,0.98552412,86.197,86.152,29.01818345]
[1771317726513,0.98299431,86.179,86.146,0.97142627]
[1771317727521,0.98175116,86.177,86.146,0.97142627]
[1771317730996,0.97691972,86.175,86.146,0.97142627]
[1771317732412,0.97574634,86.173,86.146,0.97142627]
[1771317742418,40.61644153,86.172,86.146,0.97142627]
[1771317742618,0.96369549,86.171,86.146,0.97142627]
[1771317744836,11.60496692,86.17,86.146,0.97142627]
[1771317749128,0.95678682,86.169,86.146,0.97142627]
[1771317749322,11.60496692,86.17,86.146,0.97142627]
[1771317750428,0.95584469,86.171,86.146,0.97142627]
[1771317752315,40.6131424,86.179,86.147,1.00886858]
[1771317752622,0.95399276,86.178,86.151,1.00886858]
[1771317753835,11.60402427,86.177,86.151,1.00886858]
[1771317754431,12.55531815,86.177,86.151,1.00886858]
[1771317754732,0.95129388,86.176,86.151,1.00886858]
[1771317758919,11.60429358,86.175,86.151,1.00886858]
[1771317759117,0.94699849,86.174,86.151,1.00886858]
[1771317760439,29.00916548,86.18,86.151,1.00886858]
[1771317760440,11.60456291,86.173,86.151,1.00886858]
[1771317760619,0.94616878,86.172,86.151,1.00886858]
[1771317761138,0.94616878,86.172,86.14,3.39399275]
[1771317761139,0.94616878,86.172,86.146,0.92468233]
[1771317761447,11.60456291,86.173,86.146,0.92468233]
[1771317761448,0.94534861,86.169,86.146,0.92468233]
[1771317761622,0.94534861,86.169,86.141,0.92468233]
[1771317764347,11.60523628,86.168,86.141,0.92468233]
[1771317764536,11.60523628,86.168,86.142,0.98896736]
[1771317765649,0.9413869,86.167,86.142,0.98896736]
[1771317768133,11.60550565,86.166,86.142,0.98896736]